Cogmind - Beta 9.6 @@@ ROGUE MODE // 2020.08.29 @ 15:19:45 Player: Cracklepappy Result: Self-destructed Performance ------------- Evolutions (0) 0 Regions Visited (4) 800 Robots Destroyed (32) 160 Value Destroyed (628) 628 Prototype IDs (2) 40 Alien Tech Used (0) 0 Bonus (0) 0 TOTAL SCORE: 1628 Bonus ------- None Cogmind --------- Core Integrity 9/250 Matter 138/300 Energy 100/100 System Corruption 4% Temperature Cool (0) Movement Treading (220) Ox3 Location -9/Mines Parts ------- > --- POWER (1) -------- (None) > --- PROPULSION (2) --- Light Treads > --- UTILITY (2) ------ High-capacity Storage Unit High-capacity Storage Unit > --- WEAPON (2) ------- Shotgun > --- INVENTORY (20) --- Light Treads Wheel Wheel Compact Wheel Large Storage Unit Large Storage Unit Large Storage Unit High-capacity Storage Unit High-capacity Battery (400) High-capacity Battery (400) High-capacity Matter Pod (184) Signal Interpreter Improved Terrain Scanner Assault Rifle Assault Rifle Shotgun Shotgun Mining Laser Peak State ------------ > --- POWER ------------ Ion Engine > --- PROPULSION ------- Light Treads Wheel > --- UTILITY ---------- Large Storage Unit Large Storage Unit > --- WEAPON ----------- Shotgun Shotgun > --- INVENTORY -------- Light Treads Light Treads Wheel Wheel Compact Wheel Large Storage Unit High-capacity Battery Signal Interpreter Improved Terrain Scanner Assault Rifle Assault Rifle Shotgun Shotgun Battle Cannon Grenade Launcher Mining Laser [Rating: 11] Favorites ----------- Power Ion Engine Engine Ion Engine Propulsion Light Treads Treads Light Treads Wheel Wheel Utility Large Storage Unit Storage Large Storage Unit Weapon Shotgun Ballistic Gun Shotgun Launcher Grenade Launcher Special Weapon Mining Laser Build | -11 -10 -10 -10 -9 ------- Run | Scr Mat Min Exi Min Slots Evolved . | . . . . . Power . | . . . . . Propulsion . | . . . . . Utility . | . . . . . Weapon . | . . . . . Parts Attached 27 | 7 11 1 2 6 Power 3 | 1 2 . . . Engine 3 | 1 2 . . . Core . | . . . . . Reactor . | . . . . . Propulsion 5 | 2 2 . . 1 Treads 2 | . 1 . . 1 Leg . | . . . . . Wheel 3 | 2 1 . . . Hover . | . . . . . Flight . | . . . . . Utility 6 | 2 2 . 2 . Device . | . . . . . Storage 6 | 2 2 . 2 . Processor . | . . . . . Hackware . | . . . . . Protection . | . . . . . Artifact . | . . . . . Weapon 13 | 2 5 1 . 5 Energy Gun . | . . . . . Energy Cannon . | . . . . . Ballistic Gun 10 | 2 3 1 . 4 Ballistic Cannon . | . . . . . Launcher 2 | . 1 . . 1 Special Weapon 1 | . 1 . . . Impact Weapon . | . . . . . Slashing Weapon . | . . . . . Piercing Weapon . | . . . . . Special Melee Weapon . | . . . . . Unidentified Prototypes . | . . . . . Parts Lost 7 | . 2 . . 5 Power 2 | . 1 . . 1 Propulsion 3 | . 1 . . 2 Utility . | . . . . . Weapon 2 | . . . . 2 Highest Loss Streak 3 | . 1 . . 3 Average Slot Usage (%) 99 | . 99 100 100 91 Engine 13 | . 13 14 14 8 Treads 13 | . 11 14 14 19 Wheel 14 | . 16 14 14 7 Storage 28 | . 28 28 28 28 Ballistic Gun 26 | . 25 27 28 25 Special Weapon 1 | . 2 . . . Naked Turns . | . . . . . Heaviest Build 75 | 17 42 43 75 75 Greatest Support 32 | 32 32 10 10 10 Greatest Overweight (x) 7 | . 4 4 7 7 Average Overweight (x) 3 | . 2 4 5 7 Largest Inventory Capacity 20 | 8 16 16 20 20 Average Capacity 16 | 6 15 16 17 20 Most Carried 20 | 8 16 16 20 20 Average Carried 15 | 4 14 15 17 19 Final Capacity 20 | 8 16 16 20 20 Final Carried 20 | 8 16 16 20 18 Class Distribution -------------------- 85% | Mutant 14% | Hauler-Mutant Dominant Class ---------------- Mutant | -10/Materials Mutant | -10/Mines Mutant | -10/Exiles Hauler-Mutant | -9/Mines Resources | -11 -10 -10 -10 -9 ----------- Run | Scr Mat Min Exi Min Matter Collected 903 | 306 358 64 59 116 Remotely . | . . . . . Salvage Created 741 | 99 454 33 . 155 Parts 47 | 8 30 . . 9 Haulers Intercepted . | . . . . . Recyclers Shooed 1 | . 1 . . . Parts Field Recycled . | . . . . . Retrieved Matter . | . . . . . Parts Self-Destructed . | . . . . . Prevented . | . . . . . Kills | -11 -10 -10 -10 -9 ------- Run | Scr Mat Min Exi Min Combat Hostiles Destroyed 25 | . 12 2 . 11 Guns 14 | . 8 1 . 5 Cannons 1 | . . 1 . . AOE 10 | . 4 . . 6 Classes Destroyed 8 | 2 4 . . 2 Worker 3 | . 3 . . . Tunneler 1 | 1 . . . . Recycler 1 | 1 . . . . Watcher 2 | . 2 . . . Swarmer 3 | . 3 . . . Grunt 13 | . 9 2 . 2 Brawler 1 | . . . . 1 Assembled 8 | . . . . 8 Best Kill Streak 7 | 2 7 1 . 7 Combat Bots Only 7 | . 4 1 . 7 Max Kills in Single Turn 4 | 1 4 1 . 3 Gunslinging . | . . . . . Exploded 3 | . 3 . . 3 Melee . | . . . . . Uniques/NPCs Destroyed . | . . . . . Combat | -11 -10 -10 -10 -9 -------- Run | Scr Mat Min Exi Min Damage Taken 1305 | . 475 179 . 651 Core 241 | . 107 47 . 87 Absorbed by Shields . | . . . . . Core Remaining (%) 100 | 100 . . . . Volleys Fired 79 | 6 46 8 . 19 Largest 2 | 2 2 2 . 2 Hottest 100 | 40 100 100 . 53 Shots Fired 145 | 12 86 11 . 36 Gun 131 | 12 80 7 . 32 Cannon . | . . . . . Launcher 6 | . 2 . . 4 Special 8 | . 4 4 . . Kinetic 131 | 12 80 7 . 32 Thermal 8 | . 4 4 . . Explosive 6 | . 2 . . 4 Electromagnetic . | . . . . . Robot Hit Streak 9 | 5 7 9 . 5 Robot Miss Streak 3 | 2 3 2 . 3 Penetration Max . | . . . . . Secondary Targets 3 | . 1 . . 2 Max Gunslinging Chain 1 | . 1 . . 1 Shots Hit Robots 99 | 8 62 8 . 21 Core Hits 66 | 3 33 3 . 27 Critical Hits . | . . . . . Critical Kills . | . . . . . Critical Parts Destroyed . | . . . . . Melee Attacks . | . . . . . Impact . | . . . . . Slashing . | . . . . . Piercing . | . . . . . Sneak Attacks . | . . . . . Combat Hostiles . | . . . . . Follow-up Attacks . | . . . . . Damage Inflicted 2071 | 100 1122 181 . 668 Guns 1323 | 100 777 109 . 337 Cannons . | . . . . . Explosions 676 | . 345 . . 331 Melee . | . . . . . Ramming . | . . . . . Kinetic 1323 | 100 777 109 . 337 Thermal 72 | . . 72 . . Explosive 676 | . 345 . . 331 Electromagnetic . | . . . . . Impact . | . . . . . Slashing . | . . . . . Piercing . | . . . . . Highest Corruption 4 | . 4 4 4 4 Average Corruption 3 | . 3 4 4 4 Corruption Purged . | . . . . . Effects 27 | . 7 7 9 4 Message Errors 7 | . 2 4 1 . Matter Fused 10 | . 4 2 4 . Energy Discharges 4 | . 1 . 2 1 Data Loss (minor) 3 | . . 1 2 . Targeting Errors 3 | . . . . 3 Overload Shots . | . . . . . Overflow Damage 5 | . 5 . . . Projectiles . | . . . . . Explosions 5 | . 5 . . . Melee . | . . . . . Knockbacks . | . . . . . Impact . | . . . . . Kinetic . | . . . . . Secondary . | . . . . . Self-Inflicted Damage 53 | . 37 . . 16 Shots 3 | . 2 . . 1 Rammed . | . . . . . Targets Rammed . | . . . . . Kicked . | . . . . . Crushed . | . . . . . Highest Temperature 143 | . 40 143 . 10 Average Temperature 42 | . 10 79 . 4 Received Heat Transfer 386 | . 228 108 . 50 Siege Activations . | . . . . . Robots Corrupted . | . . . . . Combat Hostiles . | . . . . . Parts Fried . | . . . . . Impact Corruptions . | . . . . . Robots Melted . | . . . . . Combat Hostiles . | . . . . . Parts Melted . | . . . . . Heat Transferred 150 | . . 150 . . Parts Sabotaged . | . . . . . Parts Stolen . | . . . . . Parts Stripped . | . . . . . Power Chain Reactions . | . . . . . Missiles Intercepted . | . . . . . Alert | -11 -10 -10 -10 -9 ------- Run | Scr Mat Min Exi Min Peak Influence 355 | 10 355 68 . 70 Average Influence 96 | 3 146 41 . 51 Maximum Alert Level 1 | . 1 . . . Low Security (%) 88 | 100 78 100 . 100 Level 1 11 | . 21 . . . Level 2 . | . . . . . Level 3 . | . . . . . Level 4 . | . . . . . Level 5 . | . . . . . High Security . | . . . . . Max Security . | . . . . . Squads Dispatched 3 | . 3 . . . Investigation . | . . . . . Extermination . | . . . . . Reinforcement 3 | . 3 . . . Assault . | . . . . . Garrison . | . . . . . Intercept . | . . . . . Construction Impeded . | . . . . . Haulers Reinforced . | . . . . . Stealth | -11 -10 -10 -10 -9 --------- Run | Scr Mat Min Exi Min Distress Signals 2 | . 2 . . . Communications Jammed . | . . . . . Distress Signals . | . . . . . Times Spotted 39 | . 22 2 . 15 Peak Tracking Total 12 | . 8 2 . 12 Tactical Retreats 1 | . 1 . . . Traps | -11 -10 -10 -10 -9 ------- Run | Scr Mat Min Exi Min Traps Triggered 2 | . 2 . . . Indirectly . | . . . . . Trap Hack Attempts . | . . . . . Triggered . | . . . . . Disarmed . | . . . . . Reprogrammed . | . . . . . Reused . | . . . . . Traps Extracted . | . . . . . Installed . | . . . . . Triggered . | . . . . . Machines | -11 -10 -10 -10 -9 ---------- Run | Scr Mat Min Exi Min Machines Disabled 2 | . 2 . . . Max in Single Turn 1 | . 1 . . . Machines Sabotaged . | . . . . . Garrisons Compromised . | . . . . . Overloaded Fab Kills . | . . . . . Fab Network Shutdowns . | . . . . . Hacking | -11 -10 -10 -10 -9 --------- Run | Scr Mat Min Exi Min Machines Accessed 6 | . 5 . 1 . Terminals 4 | . 4 . . . Fabricators . | . . . . . Repair Stations . | . . . . . Recycling Units 1 | . 1 . . . Scanalyzers . | . . . . . Garrison Access . | . . . . . Total Hacks 34 | . 11 . 23 . Successful 27 | . 4 . 23 . Failed 7 | . 7 . . . Catastrophic . | . . . . . Database Lockouts . | . . . . . Manual 6 | . 6 . . . Terminals 10 | . 10 . . . Fabricators . | . . . . . Repair Stations . | . . . . . Recycling Units 1 | . 1 . . . Scanalyzers . | . . . . . Garrison Access . | . . . . . Terminal Hacks 26 | . 3 . 23 . Record 23 | . . . 23 . Part Schematic 1 | . 1 . . . Prototype ID Bank 1 | . 1 . . . Locate Traps 1 | . 1 . . . Fabricator Hacks . | . . . . . Repair Station Hacks . | . . . . . Recycling Unit Hacks 1 | . 1 . . . Report Inventory 1 | . 1 . . . Scanalyzer . | . . . . . Garrison Access Hacks . | . . . . . Unauthorized Hacks . | . . . . . Terminals . | . . . . . Fabricators . | . . . . . Repair Stations . | . . . . . Recycling Units . | . . . . . Scanalyzers . | . . . . . Garrison Access . | . . . . . Data Cores Recovered . | . . . . . Used . | . . . . . Hacking Detections 4 | . 4 . . . Full Trace Events . | . . . . . Feedback Events . | . . . . . Feedback Blocked . | . . . . . Robot Schematics Acquired . | . . . . . Robots Built . | . . . . . Matter . | . . . . . Time . | . . . . . Total Robot Build Rating . | . . . . . Part Schematics Acquired 1 | . 1 . . . Parts Built . | . . . . . Matter . | . . . . . Time . | . . . . . Total Part Build Rating . | . . . . . Parts Repaired . | . . . . . Time . | . . . . . Parts Recycled . | . . . . . Recycled Matter . | . . . . . Retrieved Matter . | . . . . . Retrieved Components . | . . . . . Parts Scanalyzed . | . . . . . Part Schematics Acquired . | . . . . . Parts Damaged . | . . . . . Bothacking | -11 -10 -10 -10 -9 ------------ Run | Scr Mat Min Exi Min Used RIF Installer . | . . . . . Robots Hacked . | . . . . . Non-combat . | . . . . . Combat . | . . . . . Robot Hacks Applied . | . . . . . Relay Couplers Released . | . . . . . Robots Rewired . | . . . . . Allies Hacked . | . . . . . Hacks Repelled . | . . . . . Allies | -11 -10 -10 -10 -9 -------- Run | Scr Mat Min Exi Min Total Allies . | . . . . . Largest Group . | . . . . . Highest-Rated Group . | . . . . . Highest-Rated Ally . | . . . . . Total Orders . | . . . . . Ally Attacks . | . . . . . Total Damage . | . . . . . Kills . | . . . . . Allies Corrupted . | . . . . . Allies Melted . | . . . . . Intel | -11 -10 -10 -10 -9 ------- Run | Scr Mat Min Exi Min Robot Analysis Total . | . . . . . Derelict Logs Recovered 2 | . . 2 . . Drone Launches . | . . . . . Drone Recoveries . | . . . . . Exploration | -11 -10 -10 -10 -9 ------------- Run | Scr Mat Min Exi Min Turns Passed 2351 | 97 932 610 619 93 Spaces Moved 1641 | 59 628 473 462 19 Core 1 | 1 . . . . Treads . | . . . . . Legs . | . . . . . Wheels 1640 | 58 628 473 462 19 Hover . | . . . . . Flight . | . . . . . Fastest Speed 50 | 50 100 120 120 150 Average Speed 121 | 99 116 120 132 150 Slowest Speed 150 | 100 120 120 150 150 Overloaded Moves . | . . . . . Propulsion Burnouts . | . . . . . Robots Hopped . | . . . . . Cave-ins Triggered . | . . . . . Exploration Rate (%) 55 | 3 91 88 87 6 Regions Visited 4 Branch Regions 3 Pre-discovered Areas 2 | . . 1 1 . Known Exits Taken . | . . . . . Unknown Exits Taken 4 | 1 1 1 1 . Scrap Searched 1 | . . 1 . . Spaces Dug 4 | . 4 . . . Terrain Destroyed 48 | . 10 1 . 37 Melee . | . . . . . Projectile 5 | . 4 1 . . AOE 43 | . 6 . . 37 Actions | -11 -10 -10 -10 -9 --------- Run | Scr Mat Min Exi Min Total 1834 | 83 740 496 470 45 Wait 42 | . 27 13 1 1 Move 1637 | 58 627 472 461 19 Hop . | . . . . . Pick Up 34 | 11 18 1 4 . Fast Attach 5 | 5 . . . . Attach 6 | 2 2 . . 2 Detach . | . . . . . Swap 16 | . 9 1 2 4 Drop 15 | 1 11 1 2 . Fire 79 | 6 46 8 . 19 Melee . | . . . . . Ram . | . . . . . Kick . | . . . . . Crush . | . . . . . Escape Stasis . | . . . . . Rewire . | . . . . . Trap . | . . . . . Miscellaneous . | . . . . . Route ------- -11/Scrapyard -10/Materials (discovered 3 exits: [*Mat x2] / [*Min]) -10/Mines (discovered 3 exits: [*Mat x2] / *Exi) -10/Exiles -9/Mines History --------- Turn | Location | Event 22 | -11/Scrapyard | Discovered new exit (range 16) 98 | -11/Scrapyard | Entered Materials 301 | -10/Materials | Build established: Mutant 342 | -10/Materials | Discovered new exit (range 12) 738 | -10/Materials | Discovered new exit (range 4) 949 | -10/Materials | Discovered new exit (range 7) 1030 | -10/Materials | Entered Mines 1059 | -10/Mines | Core integrity fell below 50% 1117 | -10/Mines | A weapon hastily lodged in a ceiling crevice suddenly fell to the ground 1197 | -10/Mines | Learned location of Mines (-9) 1323 | -10/Mines | Deemed a non-threat by the Exiles lab entrance 1324 | -10/Mines | Discovered new exit (range 5) 1377 | -10/Mines | Learned 4 Materials zone layouts 1451 | -10/Mines | Discovered new exit (range 10) 1457 | -10/Mines | Discovered new exit (range 8) 1640 | -10/Mines | Entered Exiles 1671 | -10/Exiles | Met 8R-AWN 1691 | -10/Exiles | Met EX-HEX 1761 | -10/Exiles | Met EX-DEC 1780 | -10/Exiles | Visited The Gauntlet 2071 | -10/Exiles | Learned location of Zion (-6) 2110 | -10/Exiles | Met EX-BIN 2239 | -10/Exiles | Discovered new exit (range 14) 2259 | -10/Exiles | Entered Mines 2277 | -9/Mines | Build established: Hauler-Mutant 2294 | -9/Mines | Assembled infested the area 2336 | -9/Mines | Destroyed 7 combat bots 2343 | -9/Mines | Core integrity fell below 20% 2344 | -9/Mines | Lost 3 parts (1p1n1w) 2352 | -9/Mines | Self-destructed Last Messages --------------- 02302_ as-34405 destroyed. 02302_ as-07104 destroyed. 02305_ as-21644 destroyed. 02307_ Wheel destroyed. 02308_ as-40250 destroyed. 02311_ System corrupted: Shotgun targeting data glitched. 02311_ Destroyed Asb. Hover Unit. 02311_ as-80464 destroyed. 02312_ Grenade Launcher destroyed. 02313_ Ion Engine destroyed. 02314_ The unstable cave ceiling collapses. 02315_ as-71681 destroyed. 02315_ Switching to secondary target: as-20861. 02321_ The unstable cave ceiling collapses. 02327_ System corrupted: Assault Rifle targeting data glitched. 02336_ System corrupted: Shotgun targeting data glitched. 02336_ as-56752 destroyed. 02342_ Destroyed Asb. F-torch. 02346_ Shotgun destroyed. 02350_ Lgt. Treads destroyed. Map ----- +----------------------------------------------------+ | | | | | | | | | | | | | | | | | | | | | ????????????????????????????????????? | | ????????????????????????????????????? | | ????????????????????????????????????? | | ??##########????????????????????????? | | ??# #????????????????????????? | | ??# = =#????????????????????????? | | ??# / ! * #????????????????????????? | | ??# ! = *####?????????????????????? | | ??# * #?????????????????????? | | ??# """ #?????????????????????? | | ??# """ # #?????????????????????? | | ??# """ # #?????????????????????? | | ??# # #?????????????????????? | | ??## ####### #?????????????????????? | | ???# #?????# #?????????????????????? | | ???# #?????#@ #?????????????????????? | | ???? ??????# #????????????????????? | | ??????????? #????????????????????? | | ??????????? #????????????????????? | | ??????????## #????????????????????? | | ??????????# #????????????????????? | | ?????????? %##????????????????????? | | ??????????# ?????????????????????? | | ?????????? ?????????????????????? | | ?????????? ?????????????????????? | | ??????????# aaa?????????????????????? | | ?????????? ????????????????????? | | ?????????? $ ????????????????????? | | ????????? ##????????????????????? | | ????????? ?#????????????????????? | | ?????????? ??????????????????????? | | ???????????? ??????????????????????? | | ????????????????????????????????????? | | ????????????????????????????????????? | | ????????????????????????????????????? | | ????????????????????????????????????? | | ????????????????????????????????????? | | ????????????????????????????????????? | | ????????????????????????????????????? | | ????????????????????????????????????? | +----------------------------------------------------+ Best States ------------- Heat Dissipation 25 Energy Generation 10 Energy Capacity 250 Matter Stores 300 Matter Capacity 300 Sight Range 16 Terrain Scan Density 10 Evasion (%) 40 Recoil Reduction 2 Item Schematics ----------------- Hcp. Storage Unit | -10/Materials | Hacked Robot Schematics ------------------ None Fabricated ------------ Nothing Alien Tech Used ----------------- None Achievements -------------- None Challenges ------------ None Game ------ Seed PrecisionContainmentThruster Manual? 0 Play Time 00:20:08 Cumulative 154.0 hours Start 2020.08.29 @ 14:50:46 End 2020.08.29 @ 15:19:45 Sessions 1 Manual Loads 0 Difficulty Rogue Special Mode None Game No. 187 Rogue 187 Adventurer 0 Explorer 0 Win Type - Total 2 Types 2/0/0/0/0/0/0 Lore% 61 Gallery% 71 Achievement% 53 Wizard Run 0 Options --------- ASCII 0 Keyboard 0 Movement Numpad Keybinds 0 Fullscreen 2 Font 24/Smallcaps Map View 76x50 Tactical HUD 1 Map Filters NONE Filters NONE Steam 1 RUN: 6feb2356-5834-49e0-8cc1-2abad516a74a